bitfinex-derivatives/quotes_ETHF0:USTF0_20250220
["timestamp","ask_amount","ask_price","bid_price","bid_amount"]
[1740069129594,0.5427,2723.6,2723.2,3.2078]
[1740069129795,1.47532,2723.5,2723.2,3.2078]
[1740069130101,2.2095,2723.5,2723.4,0.73421]
[1740069131203,0.73423,2723.4,2723.3,0.73421]
[1740069131700,2.20953,2723.5,2723.4,0.73421]
[1740069131997,2.2095,2723.5,2723.4,0.73421]
[1740069132704,0.73418,2723.5,2723.4,0.73421]
[1740069134898,0.54819984,2723.6,2723.2,3.2078]
[1740069135101,0.73429,2723.2,2723.1,0.73428]
[1740069135700,0.73426,2723.3,2722.9,0.5869]
[1740069135907,0.73426,2723.3,2723.2,0.73424]
[1740069136101,4.1257,2723.5,2723.4,0.73421]
[1740069136302,0.73449,2723.4,2723.3,0.73424]
[1740069137102,1.4687,2723.4,2723.3,0.73424]
[1740069137305,0.73449,2723.4,2723.3,0.73424]
[1740069139205,0.9179,2723.5,2723.2,3.2078]
[1740069139509,0.9179,2723.5,2723.4,0.73421]
[1740069140009,0.00549984,2723.6,2723.5,0.73418]
[1740069140198,0.00549984,2723.6,2723.5,3.94198]
[1740069140603,9.84e-06,2723.6,2723.5,9.94198]
[1740069140905,0.73389,2724.6,2724.5,0.73391]
[1740069141108,0.73388,2724.7,2724.0,3.2078]
[1740069141306,0.73389,2724.6,2724.5,0.73389]
[1740069141911,3.2102,2724.8,2724.1,1.722]
[1740069141912,0.5418,2724.7,2724.1,1.722]
[1740069142111,0.5418,2724.7,2724.3,0.00549984]
[1740069142311,0.8474,2724.6,2724.5,0.7339]
[1740069142504,0.73391,2724.5,2724.4,0.73393]
[1740069142705,0.84741,2724.6,2724.4,0.73393]
[1740069142907,0.84741,2724.6,2724.3,0.00549984]
[1740069142908,0.84741,2724.6,2724.5,0.73391]
[1740069143406,0.1135,2724.6,2724.5,0.73391]
[1740069145409,1.31207,2724.7,2724.3,3.21329984]
[1740069145909,0.5782,2724.7,2724.6,0.73389]
[1740069146112,0.58869984,2724.8,2724.7,0.73386]
[1740069146418,1.32252984,2724.8,2724.7,0.73386]
[1740069147115,0.00549984,2724.8,2724.7,0.73386]
[1740069147413,0.73932984,2724.8,2724.7,0.73386]
[1740069148015,0.00549984,2724.8,2724.7,0.73386]
[1740069149517,0.73932984,2724.8,2724.7,0.73386]
[1740069151215,0.00549984,2724.8,2724.3,0.00549984]
[1740069151416,0.73394,2724.4,2724.3,0.73945984]
[1740069151619,0.73394,2724.4,2724.3,0.00549984]
[1740069152922,1.27264,2724.4,2724.3,0.00549984]
[1740069155120,0.9175,2724.5,2724.4,0.73394]
[1740069155523,0.73392,2724.6,2724.5,0.73391]
[1740069155717,1.65142,2724.6,2724.5,0.73391]
[1740069155913,0.9175,2724.6,2724.3,0.00549984]
[1740069156114,0.73394,2724.4,2724.3,0.00549984]
[1740069156319,3.94174,2724.4,2724.3,0.00549984]
[1740069157316,4.53304,2724.4,2724.3,0.00549984]
[1740069158217,4.53304,2724.4,2723.9,3.94185]
[1740069158218,1.83498,2724.3,2723.5,1.1294]
[1740069158426,3.1815,2724.2,2723.5,1.1294]
[1740069158730,3.1815,2724.2,2723.6,0.73414]
[1740069158731,0.73411,2723.8,2723.6,0.73414]
[1740069159316,3.2078,2724.0,2723.5,1.1294]
[1740069159717,0.73412,2723.8,2723.6,0.73414]
[1740069160028,0.5864,2723.9,2723.6,0.73416]
[1740069160417,0.73413,2723.7,2723.6,0.73416]
[1740069161126,0.73413,2723.7,2723.5,1.1294]
[1740069161425,0.73413,2723.7,2723.5,1.86356]
[1740069161612,0.84762,2723.8,2723.6,0.73414]
[1740069162017,0.73413,2723.7,2723.6,0.73414]
[1740069162221,0.1135,2723.8,2723.4,3.942]
[1740069162417,0.5919,2723.6,2723.2,4.54949352]
[1740069162818,0.73424,2723.3,2723.2,5.28375352]
[1740069163226,0.73424,2723.3,2723.2,4.54949352]
[1740069164217,5.6057,2723.4,2722.9,1.30013]
[1740069164528,0.73431,2723.1,2722.9,0.5658]
[1740069164724,0.73431,2723.1,2722.9,1.30013]
[1740069165127,2.624,2723.3,2722.9,0.5658]
[1740069165429,2.624,2723.3,2722.2,44.0078]
[1740069165430,3.2078,2723.0,2722.2,44.0078]
[1740069165629,0.73441,2722.7,2722.5,1.27825]
[1740069166026,0.73442,2722.7,2722.5,0.5438]
[1740069166228,0.73442,2722.7,2722.5,1.27824]
[1740069166422,3.8152,2722.9,2722.5,1.27824]
[1740069166619,3.8152,2722.9,2722.5,0.5438]
[1740069167225,3.8152,2722.9,2722.3,1.0992]
[1740069167422,3.8152,2722.9,2722.6,0.7344]
[1740069167634,3.8152,2722.9,2722.6,0.73441]
[1740069167847,3.8152,2722.9,2722.3,1.643]
[1740069168022,0.9181,2722.8,2722.3,1.643]
[1740069168227,0.9181,2722.8,2722.7,0.7344]
[1740069171037,0.9181,2722.9,2722.5,3.2078]
[1740069171237,0.9181,2722.9,2722.8,3.94217]
[1740069172436,2.62949984,2723.4,2723.3,0.73424]
[1740069173339,0.00549984,2723.4,2723.3,0.73424]
[1740069180439,0.73970984,2723.4,2723.3,0.73424]
[1740069181248,0.73426,2723.2,2723.1,3.94207]
[1740069182541,0.00549984,2723.4,2723.1,3.2078]
[1740069182746,0.73426,2723.3,2723.2,0.73424]
[1740069183955,0.73426,2723.2,2723.1,3.94206]
[1740069184148,1.86686,2723.2,2723.1,3.94206]
[1740069185156,1.86686,2723.2,2722.8,0.73433]
[1740069185157,1.1326,2723.2,2722.8,0.73433]
[1740069185359,0.73437,2722.8,2722.7,0.73439]
[1740069185953,5.8298,2723.0,2722.4,3.2078]
[1740069186156,1.28653,2722.7,2722.6,0.73443]
[1740069186357,0.5521,2722.7,2722.4,3.2078]
[1740069186553,0.5488,2722.6,2722.4,3.2078]
[1740069186753,1.28325,2722.6,2722.5,0.73445]
[1740069186953,0.73445,2722.5,2722.4,3.94225]
[1740069187647,0.5488,2722.6,2722.4,3.2078]
[1740069187852,1.28325,2722.6,2722.5,0.73445]
[1740069188157,1.28323,2722.6,2722.5,0.73445]
[1740069188354,0.5521,2722.7,2722.4,3.2078]
[1740069188561,5.8298,2723.0,2722.4,3.2078]
[1740069188562,0.5488,2722.9,2722.5,1.83611]
[1740069188752,0.5488,2722.9,2722.8,0.73437]
[1740069189352,3.2078,2723.0,2722.6,2.92807]
[1740069189647,3.94212,2723.0,2722.9,0.73434]
[1740069190458,0.73438,2722.9,2722.8,0.73435]
[1740069190852,3.2078,2723.0,2722.6,1.092]
[1740069191054,3.2078,2723.0,2722.9,0.73434]
[1740069191354,4.0921,2723.1,2722.7,5.0438]
[1740069191553,4.0921,2723.1,2723.0,0.73432]
[1740069191949,0.918,2723.1,2723.0,0.73432]
[1740069192352,0.918,2723.1,2723.0,3.94212]
[1740069192651,1.65229,2723.1,2723.0,3.94212]
[1740069192851,0.918,2723.1,2723.0,0.73432]
[1740069193255,3.21329984,2723.4,2722.7,3.2078]
[1740069193447,3.21329984,2723.4,2723.3,0.73424]
[1740069194052,0.00549984,2723.4,2723.3,0.73424]
[1740069194856,0.00549984,2723.4,2723.3,3.94204]
[1740069195359,2.3316078,2723.5,2723.3,3.2078]
[1740069195661,2.3316078,2723.5,2723.4,0.73421]
[1740069196061,6.3808,2724.2,2723.3,3.2078]
[1740069196256,0.73414,2723.7,2723.6,0.73413]
[1740069196859,0.73414,2723.7,2723.4,0.00549984]
[1740069196860,0.59809984,2723.9,2723.4,0.00549984]
[1740069197058,0.552,2723.6,2723.5,0.73418]
[1740069198361,0.73418,2723.5,2723.4,0.73969984]
[1740069199167,1.28617,2723.6,2723.5,0.73418]
[1740069199357,0.552,2723.6,2723.4,0.00549984]
[1740069199556,0.73418,2723.5,2723.4,0.73968984]
[1740069199758,0.73418,2723.5,2723.4,0.00549984]
[1740069199961,0.73418,2723.5,2723.4,0.73970984]
[1740069200159,2.621,2723.7,2723.4,0.00549984]
[1740069200457,3.35513,2723.7,2723.6,0.73416]
[1740069201162,2.621,2723.7,2723.6,0.73416]
[1740069201662,3.35513,2723.7,2723.6,0.73416]
[1740069201865,2.621,2723.7,2723.6,0.73416]
[1740069202553,1.13729984,2723.9,2723.4,0.00549984]
[1740069202759,1.13729984,2723.9,2723.8,0.7341]
[1740069202958,0.00549984,2723.9,2723.8,0.7341]
[1740069206164,0.73413,2723.8,2723.7,0.73411]
[1740069206358,1.32693,2723.8,2723.7,0.73411]
[1740069206757,1.3269,2723.8,2723.7,0.73411]
[1740069206956,0.5928,2723.8,2723.7,0.73411]
[1740069207363,0.55129984,2723.9,2723.8,0.7341]
[1740069207569,0.00549984,2723.9,2723.8,0.7341]
[1740069208668,0.00549984,2723.9,2723.8,1.8888]
[1740069209065,0.1133,2724.0,2723.9,0.73407]
[1740069209377,0.9177,2724.1,2724.0,0.73405]
[1740069209670,0.73387,2724.7,2724.6,0.73389]
[1740069209972,0.73386,2724.8,2724.7,0.73384]
[1740069210171,2.619,2724.9,2724.3,3.8034]
[1740069210371,0.73384,2724.8,2724.7,0.73384]
[1740069211273,2.619,2724.9,2724.6,0.73388]
[1740069211574,0.73385,2724.8,2724.7,0.73383]
[1740069211775,0.73387,2724.7,2724.6,0.73386]
[1740069212272,1.4171,2724.8,2724.4,0.567]
[1740069212565,1.28629,2724.6,2724.5,0.73391]
[1740069212971,0.5524,2724.6,2724.5,0.73391]
[1740069213373,1.28629,2724.6,2724.5,0.73391]
[1740069213572,0.73391,2724.5,2724.4,0.73393]
[1740069214377,2.0145,2724.6,2724.3,3.8034]
[1740069214581,2.0145,2724.6,2724.5,0.73391]
[1740069214874,2.74839,2724.6,2724.5,0.73391]
[1740069215771,0.9175,2724.6,2724.5,0.73391]
[1740069216673,0.9175,2724.6,2724.5,3.35191]
[1740069216875,0.9175,2724.6,2724.5,9.35191]
[1740069217268,1.4171,2724.8,2724.5,8.618]
[1740069217470,1.4171,2724.8,2724.7,3.94166]
[1740069217877,0.00549984,2725.0,2724.9,0.73381]
[1740069221976,0.73927984,2725.0,2724.9,0.73381]
[1740069222678,0.73383,2724.9,2724.8,0.73381]
[1740069222874,1.84193,2724.9,2724.8,0.73381]
[1740069223873,1.84191,2724.9,2724.8,0.73381]
[1740069224980,1.1081,2724.9,2724.8,0.73381]
[1740069226270,1.79439984,2725.0,2724.9,0.73381]
[1740069228282,0.00549984,2725.0,2724.9,0.73381]
[1740069230080,0.73927984,2725.0,2724.9,0.73381]
[1740069230276,0.73927984,2725.0,2724.4,41.9447]
[1740069230277,0.00549984,2725.0,2724.4,45.84261]
[1740069230583,0.73387,2724.8,2724.7,0.73384]
[1740069231182,0.73388,2724.7,2724.6,0.73385]
[1740069232085,0.73385,2724.8,2724.7,0.73383]
[1740069233284,0.73389,2724.7,2724.6,0.73386]
[1740069234783,0.73389,2724.7,2724.4,3.2078]
[1740069234784,1.7336,2724.9,2724.4,3.2078]
[1740069234982,0.73391,2724.5,2724.4,3.2078]
[1740069235191,9.39094,2724.9,2723.9,3.51383]
[1740069235192,0.73399,2724.3,2724.2,0.73398]
[1740069235391,0.73397,2724.4,2724.3,0.73395]
[1740069235794,1.83466,2724.7,2724.0,3.2078]
[1740069235991,1.27899,2724.3,2724.2,0.73398]
[1740069236491,1.27897,2724.3,2724.2,0.73398]
[1740069236693,0.545,2724.3,2724.0,3.2078]
[1740069236891,1.27899,2724.3,2724.2,0.73399]
[1740069237487,0.73402,2724.1,2724.0,3.94184]
[1740069237989,1.31721,2724.2,2724.1,0.73402]
[1740069238287,2.23491,2724.2,2724.1,0.73402]
[1740069238488,2.23492,2724.2,2724.1,0.73402]
[1740069238695,0.73402,2724.1,2724.0,3.94184]
[1740069239101,0.73402,2724.1,2724.0,0.73404]
[1740069239489,3.15263,2724.2,2724.1,0.73402]
[1740069240592,2.56943,2724.2,2724.1,0.73402]
[1740069240790,1.8354,2724.2,2724.1,0.73402]
[1740069241287,0.9177,2724.2,2724.1,0.73402]
[1740069241891,0.9177,2724.2,2724.1,1.28782]
[1740069242197,0.545,2724.3,2724.2,0.73399]
[1740069242396,1.27897,2724.3,2724.2,0.73399]
[1740069242591,0.73402,2724.1,2724.0,3.2078]
[1740069242791,0.73412,2723.8,2723.7,0.7341]
[1740069243397,0.73412,2723.8,2723.5,41.9295]
[1740069243398,0.73407,2724.0,2723.9,0.73405]
[1740069243595,0.5427,2724.1,2723.5,41.9295]
[1740069243904,0.73413,2723.8,2723.7,0.73411]
[1740069244292,1.30983,2723.8,2723.7,0.73411]
[1740069244994,0.5757,2723.8,2723.7,0.73411]
[1740069245194,1.3098,2723.8,2723.7,0.73411]
[1740069245498,0.5757,2723.8,2723.4,44.01329984]
[1740069245690,0.73415,2723.7,2723.6,0.73414]
[1740069247190,0.5757,2723.8,2723.4,3.21329984]
[1740069247392,0.73418,2723.5,2723.4,3.94750984]
[1740069247592,0.73418,2723.5,2723.4,3.21329984]
[1740069247896,0.73418,2723.5,2723.4,3.94750984]
[1740069248693,0.73418,2723.6,2723.5,0.73417]
[1740069248892,0.73418,2723.5,2723.4,3.94749984]
[1740069250398,0.73418,2723.5,2723.4,3.94748984]
[1740069250595,3.1897,2723.8,2723.4,3.94748984]
[1740069250803,3.1897,2723.8,2723.4,3.21329984]
[1740069251099,0.73418,2723.5,2723.4,3.94749984]
[1740069251603,3.1897,2723.8,2723.4,3.21329984]
[1740069251803,0.73418,2723.6,2723.5,0.73415]
[1740069251998,0.73418,2723.5,2723.4,3.94749984]
[1740069252300,0.73418,2723.6,2723.5,0.73417]
[1740069252502,0.73418,2723.5,2723.4,3.94748984]
[1740069253195,0.73418,2723.5,2723.4,0.00549984]
[1740069253396,3.94198,2723.5,2723.4,0.00549984]
[1740069255807,3.94198,2723.5,2723.4,0.73970984]
[1740069256100,3.2078,2723.5,2723.4,0.73970984]
[1740069256300,0.5891,2723.5,2723.4,0.73970984]
[1740069256500,6.3975,2723.8,2723.4,0.00549984]
[1740069256709,0.73417,2723.7,2723.6,0.73413]
[1740069257003,6.9866,2723.8,2723.7,0.73413]
[1740069257004,7.72073,2723.8,2723.7,0.73413]
[1740069257510,2.614,2723.9,2723.5,6.22624]
[1740069257705,0.73413,2723.8,2723.7,0.7341]
[1740069258202,3.34809,2723.9,2723.8,0.7341]
[1740069258504,0.73414,2723.8,2723.7,0.73411]
[1740069258897,0.73408,2724.0,2723.9,0.73405]
[1740069259602,6.9502,2724.1,2723.7,0.5775]
[1740069259603,4.3362,2724.1,2723.7,0.5775]
[1740069259801,4.3362,2724.1,2724.0,0.73405]
[1740069259802,1.32312,2724.1,2724.0,0.73405]
[1740069260002,3.34801,2724.2,2724.1,0.73402]
[1740069260203,0.9177,2724.2,2724.1,0.73402]
[1740069262313,0.73407,2723.9,2723.8,3.94189]
[1740069262503,0.73406,2724.0,2723.8,3.94189]
[1740069262811,0.73406,2724.0,2723.8,3.2078]
[1740069263107,1.1652,2724.1,2723.8,3.94189]
[1740069263309,0.73407,2723.9,2723.8,3.94189]
[1740069263504,0.73406,2724.0,2723.9,0.73406]
[1740069263704,0.73407,2724.0,2723.9,0.73406]
[1740069264109,0.9177,2724.2,2723.7,0.5775]
[1740069264307,0.73404,2724.1,2724.0,0.73403]
[1740069264705,0.9177,2724.2,2723.7,0.5775]
[1740069265003,0.9177,2724.2,2724.1,0.73402]
[1740069265203,3.94173,2724.5,2723.9,3.2078]
[1740069265510,3.2078,2724.5,2724.0,2.94918]
[1740069265807,3.2078,2724.8,2724.3,3.2078]
[1740069266002,3.2078,2724.8,2724.4,0.592]
[1740069266202,0.7339,2724.6,2724.5,0.7339]
[1740069266401,1.65137,2724.7,2724.6,0.73389]
[1740069266604,0.9175,2724.7,2724.6,0.73389]
[1740069267909,1.65136,2724.7,2724.6,0.73389]
[1740069268109,0.9175,2724.7,2724.6,0.73389]
[1740069269013,1.65136,2724.7,2724.6,0.73389]
[1740069269205,2.61849984,2725.0,2724.5,1.1141]
[1740069269407,0.73385,2724.8,2724.7,0.73385]
[1740069270107,0.00549984,2725.0,2724.5,1.1141]
[1740069270310,0.73383,2724.9,2724.8,0.73381]
[1740069270709,0.00549984,2725.0,2724.5,1.1141]
[1740069270910,0.73384,2724.8,2724.7,0.73384]
[1740069271207,0.00549984,2725.0,2724.5,1.1141]
[1740069271514,0.73387,2724.7,2724.6,0.73387]
[1740069273009,0.73389,2724.6,2724.5,1.84799]
[1740069273210,0.73389,2724.6,2724.5,0.5591]
[1740069273518,3.94169,2724.6,2724.5,0.5591]
[1740069274011,0.73391,2724.5,2724.4,0.592]
[1740069274315,0.73397,2724.3,2724.2,0.5478]
[1740069274508,3.94177,2724.3,2724.2,0.5478]
[1740069275408,5.8188,2724.3,2723.9,0.5699]
[1740069275609,0.73405,2724.0,2723.9,0.5699]
[1740069276631,3.94185,2724.0,2723.9,0.5699]
[1740069277505,3.94185,2724.0,2723.9,1e-08]
[1740069277715,0.73418,2723.5,2723.4,0.00549984]
[1740069281113,0.73418,2723.5,2723.4,0.73970984]
[1740069281315,2.611,2723.7,2723.6,0.73416]
[1740069281510,2.611,2723.7,2723.5,0.73418]
[1740069281511,0.73417,2723.6,2723.5,0.73418]
[1740069281714,2.611,2723.7,2723.4,0.00549984]
[1740069281928,0.73418,2723.6,2723.5,0.73417]
[1740069282319,2.611,2723.7,2723.4,0.73968984]
[1740069282520,0.73418,2723.6,2723.5,0.73418]
[1740069282727,0.73418,2723.5,2723.4,0.00549984]
[1740069286219,5.8188,2723.7,2723.2,0.5504]
[1740069286417,0.73424,2723.3,2723.2,0.5504]
[1740069286617,0.73429,2723.1,2723.0,1.8612]
[1740069286821,0.73429,2723.1,2723.0,1.297]
[1740069287023,0.73429,2723.1,2723.0,0.7343]
[1740069287221,0.73432,2723.0,2722.9,0.5838]
[1740069287819,0.73434,2722.9,2722.8,0.00549984]
[1740069289324,0.73434,2722.9,2722.8,0.73986984]
[1740069289722,3.2078,2723.1,2722.8,0.00549984]
[1740069290226,0.73434,2723.0,2722.9,0.73432]
[1740069290735,0.73431,2723.1,2723.0,0.73429]
[1740069290929,1.4688,2723.2,2722.8,3.21329984]
[1740069291123,0.73434,2723.0,2722.9,0.73432]
[1740069292125,2.0485,2723.1,2723.0,0.73432]
[1740069292432,2.78279,2723.1,2723.0,0.73432]
[1740069292823,2.78279,2723.1,2722.8,3.21329984]
[1740069292824,0.73434,2723.0,2722.9,0.73432]
[1740069293922,2.78281,2723.1,2723.0,0.73432]
[1740069294528,0.73431,2723.1,2723.0,0.73432]
[1740069296230,0.74585634,2723.1,2723.0,0.73432]
[1740069296532,0.73434,2723.0,2722.9,0.73432]
[1740069296733,0.01154634,2723.1,2722.8,5.04921984]
[1740069296932,0.74585634,2723.1,2723.0,0.73432]
[1740069297426,0.01154634,2723.1,2723.0,0.73432]
[1740069300232,0.01154634,2723.1,2723.0,6.73432]
[1740069300533,0.3787465,2723.2,2723.1,0.73429]
[1740069300733,0.3787465,2723.2,2723.1,6.55209]
[1740069301036,1.77229984,2723.3,2723.2,0.73426]
[1740069303336,1.77229984,2723.3,2723.1,3.2078]
[1740069303537,0.73426,2723.2,2723.1,3.2078]
[1740069303930,0.73426,2723.2,2723.1,3.94209]
[1740069305138,0.73426,2723.2,2723.1,3.2078]
[1740069305336,0.73426,2723.2,2723.1,3.94209]
[1740069306650,4.38129984,2723.3,2722.8,0.00549984]
[1740069306848,3.2078,2723.0,2722.0,3.2078]
[1740069307053,3.2078,2722.7,2722.0,3.2078]
[1740069307350,0.73458,2722.1,2722.0,0.73459]
[1740069307550,0.73458,2722.1,2721.9,0.7346]
[1740069307751,0.73455,2722.2,2722.0,0.73457]
[1740069307944,0.73456,2722.1,2722.0,0.73457]
[1740069308140,5.04402,2722.4,2721.6,3.2078]
[1740069308350,0.73465,2721.8,2721.6,3.2078]
[1740069308652,1.83627,2722.3,2721.6,3.2078]
[1740069308653,0.73467,2721.7,2721.6,3.2078]
[1740069309049,3.34367,2721.7,2721.6,3.2078]
[1740069309248,2.609,2721.7,2721.0,0.73484]
[1740069309555,0.73478,2721.3,2721.1,0.73482]
[1740069309748,3.2078,2721.5,2721.1,0.73482]
[1740069309943,0.73478,2721.3,2720.9,40.8]
[1740069310148,0.73478,2721.3,2721.0,0.73484]
[1740069310450,0.73482,2721.2,2720.8,2.3119]
[1740069310747,0.74633558,2721.0,2720.5,7.76148435]
[1740069310952,0.73491,2720.9,2720.5,8.49647435]
[1740069311147,0.73492,2720.8,2720.5,7.76148435]
[1740069311549,0.01147558,2720.7,2720.5,6.86548435]
[1740069311751,0.02295125,2720.6,2720.5,47.66548435]
[1740069312053,0.02295125,2720.6,2720.5,6.86548435]
[1740069312350,0.02295125,2720.6,2720.5,6.69967435]
[1740069314048,0.02295125,2720.6,2720.5,5.96468435]
[1740069314357,0.02295125,2720.6,2720.5,6.69967435]
[1740069314958,0.02295125,2720.6,2720.5,3.94279]
[1740069315253,0.03440352,2720.6,2720.5,3.94279]
[1740069315453,0.03440352,2720.6,2720.5,3.2078]
[1740069315648,0.76937352,2720.6,2720.5,3.2078]
[1740069315847,0.03440352,2720.6,2720.5,3.2078]
[1740069316556,0.03440352,2720.6,2720.5,3.94279]
[1740069317253,0.04585579,2720.6,2720.5,3.94279]
[1740069319345,0.04585579,2720.6,2720.5,44.74279]
[1740069319557,0.78082579,2720.6,2720.5,3.2078]
[1740069319756,3.2078,2720.1,2719.5,0.46415935]
[1740069319953,3.2078,2719.6,2718.0,4.60027807]
[1740069320254,3.2078,2719.0,2718.3,3.2078]
[1740069321060,3.2078,2719.0,2718.1,40.8]
[1740069321061,3.2078,2718.7,2718.1,40.8]
[1740069321264,3.94338,2718.4,2717.3,4.8961]
[1740069321454,3.2078,2718.1,2717.3,4.8961]
[1740069321855,3.2078,2718.1,2717.4,40.8]
[1740069322155,3.2078,2717.8,2717.4,40.8]
[1740069322551,3.2078,2717.8,2717.6,0.73576]
[1740069322757,3.2078,2717.8,2717.4,40.8]
[1740069322957,3.2078,2717.8,2717.4,41.53581]
[1740069323153,3.2078,2717.8,2717.4,40.8]
[1740069323355,3.2078,2717.5,2717.4,40.8]
[1740069323855,3.2078,2717.5,2717.4,41.53583]
[1740069324362,3.2078,2717.5,2716.9,11.45949879]
[1740069324562,3.2078,2717.5,2716.7,6.4149]
[1740069324761,3.2078,2717.5,2717.2,0.73588]
[1740069325154,0.00551055,2717.7,2717.2,6.0]
[1740069325354,0.00551055,2717.7,2717.6,0.73578]
[1740069327551,0.61001,2717.8,2717.7,0.73575]
[1740069327751,3.2078,2718.4,2718.3,0.73559]
[1740069328554,2.45531016,2718.4,2718.3,0.73559]
[1740069328758,3.2078,2719.2,2718.4,1.8389]
[1740069328966,3.2078,2719.0,2718.9,0.73541]
[1740069329157,3.2078,2719.0,2718.9,41.53541]
[1740069329757,3.2078,2719.0,2718.9,0.73541]
[1740069329962,3.2078,2719.0,2718.2,1.83904]
[1740069330264,3.2078,2719.0,2718.9,0.73542]
[1740069330866,0.00551055,2719.1,2719.0,0.7354]
[1740069334868,0.73541,2719.0,2718.3,40.8]
[1740069335072,3.2078,2718.7,2718.6,0.73551]
[1740069336567,0.00551055,2719.1,2719.0,0.7354]
[1740069337464,0.73542,2719.0,2718.3,40.8]
[1740069337664,3.2078,2718.8,2718.7,0.73548]
[1740069337864,0.00551055,2719.1,2719.0,0.7354]
[1740069337865,3.21331055,2719.1,2719.0,0.7354]
[1740069338867,0.00551055,2719.1,2719.0,0.7354]
[1740069340266,5.5e-07,2719.1,2719.0,0.7354]
[1740069340466,3.2078,2719.9,2719.0,6.0]
[1740069340771,3.2078,2720.3,2720.2,0.73507]
[1740069349171,0.73509,2720.2,2720.0,0.74062055]
[1740069349378,0.7351,2720.1,2720.0,0.74062055]
[1740069349676,3.7886,2720.3,2720.0,0.00551055]
[1740069350075,0.73508,2720.2,2720.1,0.73509]
[1740069350268,0.7351,2720.2,2720.0,0.74062055]
[1740069350471,0.7351,2720.2,2720.1,0.7351]
[1740069351082,3.7886,2720.3,2720.2,0.73507]
[1740069351682,3.2078,2720.3,2720.2,0.73507]
[1740069353877,3.2078,2720.3,2720.0,0.00551055]
[1740069354187,0.7351,2720.1,2720.0,0.00551055]
[1740069354585,3.3441,2720.1,2720.0,0.00551055]
[1740069354885,3.3441,2720.1,2719.5,0.73524]
[1740069354886,0.73525,2719.6,2719.5,0.73524]
[1740069355082,3.2078,2719.6,2719.5,0.73524]
[1740069358993,2.35235,2719.6,2719.5,0.73524]
[1740069359193,2.609,2720.1,2719.4,3.2078]
[1740069359394,3.2078,2720.2,2720.1,0.7351]
[1740069360393,3.2078,2720.2,2719.3,1.11631055]
[1740069360593,3.2078,2719.8,2719.3,0.00551055]
[1740069361092,0.539,2719.7,2719.3,0.00551055]
[1740069361397,0.73529,2719.4,2719.3,0.00551055]
[1740069361600,3.34429,2719.4,2719.3,0.00551055]
[1740069361800,3.92659,2719.4,2719.3,0.00551055]
[1740069362290,1.83832,2719.3,2718.7,0.73547]
[1740069362598,3.2078,2718.8,2718.3,3.2078]
[1740069362791,3.2078,2718.8,2718.7,0.73548]
[1740069363096,3.94327,2718.8,2718.6,0.73549]
[1740069363299,3.2078,2718.8,2718.7,0.73548]
[1740069363489,0.73549,2718.7,2718.5,0.73552]
[1740069363995,3.94327,2718.8,2718.3,3.2078]
[1740069364295,0.73548,2718.7,2718.3,3.2078]
[1740069364493,3.2078,2718.8,2718.4,0.73553]
[1740069364793,3.2078,2718.5,2718.0,1.1758]
[1740069365000,5.8168,2718.5,2718.0,1.1758]
[1740069365197,5.8168,2718.5,2717.6,3.2078]
[1740069365198,3.2078,2718.2,2717.6,3.2078]
[1740069365692,2.39773,2718.9,2717.6,3.2078]
[1740069365693,3.2078,2717.9,2717.6,0.73577]
[1740069365903,3.2078,2717.9,2717.4,0.5477]
[1740069365904,3.2078,2717.9,2717.7,0.73574]
[1740069366191,3.2078,2717.9,2717.8,0.73572]
[1740069366790,2.609,2718.0,2717.4,0.5477]
[1740069366990,2.609,2718.0,2717.9,0.7357]
[1740069367401,2.609,2718.0,2717.8,0.73571]
[1740069367587,2.609,2718.0,2717.3,3.7555]
[1740069367900,2.609,2718.0,2717.9,0.7357]
[1740069368299,2.609,2718.0,2717.7,0.73573]
[1740069368597,3.2078,2717.9,2717.3,3.7555]
[1740069368792,0.73576,2717.7,2717.3,3.7555]
[1740069369300,3.2078,2717.9,2717.3,44.5555]
[1740069369792,0.73575,2717.8,2717.5,0.73579]
[1740069369996,0.73576,2717.7,2717.4,0.73581]
[1740069370190,0.73576,2717.7,2717.5,0.73579]
[1740069370403,0.73575,2717.7,2717.5,0.73579]
[1740069370598,0.73575,2717.7,2717.3,44.5555]
[1740069370898,0.73575,2717.7,2717.5,0.73579]
[1740069371304,3.2078,2717.9,2717.3,3.7555]
[1740069371598,3.2078,2717.9,2717.5,0.73578]
[1740069371793,3.2078,2717.6,2717.3,0.5477]
[1740069372102,3.2078,2717.6,2717.5,0.7358]
[1740069373095,3.94358,2717.6,2717.4,0.73581]
[1740069373298,3.2078,2717.6,2717.3,0.5477]
[1740069373493,3.2078,2717.6,2717.4,0.73582]
[1740069373796,0.73581,2717.5,2717.2,0.5742]
[1740069374001,0.73587,2717.3,2717.2,0.73588]
[1740069374302,0.73584,2717.4,2717.0,40.8]
[1740069374501,5.82231055,2717.6,2717.0,40.8]
[1740069374796,5.82231055,2717.6,2717.5,0.7358]
[1740069375192,3.21331055,2717.6,2717.5,0.7358]
[1740069375702,3.22923567,2717.6,2717.5,0.7358]
[1740069375888,3.22923567,2717.6,2717.5,41.5358]
[1740069376693,0.9198,2717.7,2717.5,40.8]
[1740069376898,0.9198,2717.7,2717.6,3.94358]
[1740069377091,3.2078,2718.3,2717.7,1.83938]
[1740069377495,3.2078,2718.3,2718.2,0.73561]
[1740069377901,3.21933632,2718.3,2718.2,0.73561]
[1740069378502,0.01153632,2718.3,2718.2,0.73561]
[1740069382204,3.21933632,2718.3,2718.2,0.73561]
[1740069382507,0.00875911,2718.3,2718.2,0.73561]
[1740069382704,0.3862,2718.4,2718.3,0.73559]